{"text_format":"1","workbook":"xlsx","n_sheets":2,"sheets":["kørepenge","KM nr. 2"],"not_rendered":{"charts":0,"images":0,"macros":0,"external_links":0,"defined_names":1,"comments":0,"pivot_tables":0},"unopened":[],"bounds":{"document_bytes":16777216,"sheet_cells":100000,"rows_first":2000,"rows_last":500,"rows_between":2000,"halvings":0,"cell_chars":16384,"cell_head_chars":4096},"cells_cut":0,"cells_raw":0,"read":"whole","date_system":"1900"}

{"sheet":"kørepenge","index":0,"n_rows":58,"n_cols":11,"rows_kept":58,"cut":false,"hidden":false,"merged":[[54,2,54,7],[55,2,55,7],[52,2,52,7],[6,0,6,7],[3,1,3,7],[4,1,5,7],[46,1,46,7],[50,1,50,7],[53,2,53,3]]}
["Firma "]
[null,null,null,"Over 20.000 2,28 kr. pr. km"]
[]
["Kørselsgodtgørelse 2011","Kørselsgodtgørelse 2026"]
[null,"OBS: Når du bruger reglerne for kørebog forudsætter det, at bilen er i dit eller ægtefællens navn. Dvs. der kan ikke bruges kørebog hvis man har lånt en bil."]
[]
[]
["År","Kunde","Dato","Mål & delmål","Formål","Km.","Sats","I alt"]
[null,null,null,null,null,null,3.94,{"$f":"+F9*G9","v":0}]
[null,null,null,null,null,null,3.94,0]
[null,null,null,null,null,null,3.94,0]
[null,null,null,null,null,null,3.94,0]
[null,null,null,null,null,null,3.94,0]
[null,null,null,null,null,null,3.94,0]
[null,null,null,null,null,null,3.94,0]
[null,null,null,null,null,null,3.94,0]
[null,null,null,null,null,null,3.94,0]
[null,null,null,null,null,null,3.94,0]
[null,null,null,null,null,null,3.94,0]
[null,null,null,null,null,null,3.94,0]
[null,null,null,null,null,null,3.94,0]
[null,null,null,null,null,null,3.94,0]
[null,null,null,null,null,null,3.94,0]
[null,null,null,null,null,null,3.94,0]
[null,null,null,null,null,null,3.94,0]
[null,null,null,null,null,null,3.94,0]
[null,null,null,null,null,null,3.94,0]
[null,null,null,null,null,null,3.94,0]
[null,null,null,null,null,null,3.94,0]
[null,null,null,null,null,null,3.94,0]
[null,null,null,null,null,null,3.94,0]
[null,null,null,null,null,null,3.94,0]
[null,null,null,null,null,null,3.94,0]
[null,null,null,null,null,null,3.94,0]
[null,null,null,null,null,null,3.94,0]
[null,null,null,null,null,null,3.94,0]
[null,null,null,null,null,null,3.94,0]
[null,null,null,null,null,null,3.94,0]
[null,null,null,null,null,null,3.94,0]
[null,null,null,null,null,null,3.94,0]
[null,null,null,null,null,null,3.94,0]
[null,null,null,null,null,null,3.94,0]
[null,null,null,null,null,null,3.94,0]
[null,null,null,null,"I alt",{"$f":"SUM(F9:F43)","v":0},null,{"$f":"SUM(H9:H43)","v":0}]
[]
[null,"OBS. Husk også at du må trække parkeringsudgifter fra samtidig med at du bruger kørebog med virkning fra 01.01.17"]
[null,"Overstående er kun en skabelon vi stiller til rådighed. Vi kan ikke garanterer at SKAT godkender skabelonen. Husk at du til en hver tid skal kunne bevise din erhvervsmæssige kørsel. "]
[]
[null,"Krav til kørselsregnskab"]
[]
[null,"Hvis skatteyderen ønsker, at et kørselsregnskab skal danne grundlag ved opgørelsen af fradrag i forbindelse med skatteansættelsen, skal der dagligt være ført en kørebog med angivelse af:",null,null,null,null,null,null,null,null,"hvad kilometertælleren viste ved begyndelsen af den daglige kørsel og ved dens afslutning"]
[]
[null,"1.","hvad kilometertælleren viste ved begyndelsen af den daglige kørsel og ved dens afslutning"]
[null,"2.","datoen for kørslen"]
[null,"3.","den daglige kørsels fordeling mellem privat og erhvervsmæssig kørsel"]
[null,"4.","bestemmelsessteder for den erhvervsmæssige kørsel og lignende notater, der kan sandsynliggøre og eventuelt dokumentere regnskabets rigtighed."]
[]
[null,null,"Kilde:","https://skat.dk/hjaelp/satser"]

{"sheet":"KM nr. 2","index":1,"n_rows":56,"n_cols":12,"rows_kept":56,"cut":false,"hidden":false,"merged":[[1,5,1,7],[53,1,53,2],[54,1,54,6],[55,1,55,6],[2,1,2,11],[6,0,6,11],[4,1,4,2],[5,1,5,2],[3,1,3,8],[46,0,46,6],[50,0,50,6],[52,1,52,6],[5,6,5,11]]}
["Firma ",null,null,null,"År 2026"]
[null,null,null,null,null,"Over 20.000 2,28 kr. pr. km"]
[]
[null,"OBS: Når du bruger reglerne for kørebog forudsætter det, at bilen er i dit eller ægtefællens navn. Dvs. der kan ikke bruges kørebog hvis man har lånt en bil."]
["Registreringsnr."]
["Medarbejdernavn",null,null,"CPR."]
[]
["Kørselstype  Privat/Erhverv","Kunde","Dato","Formål","Kørt fra","Kørt til","km tæller start","km tæller slut","Privat antal km","Erhverv antal km.","Sats","I alt"]
[null,null,null,null,null,null,null,null,null,{"$f":"H9-G9-I9","v":0},3.94,{"$f":"+J9*K9","v":0}]
[null,null,null,null,null,null,null,null,null,0,3.94,0]
[null,null,null,null,null,null,null,null,null,0,3.94,0]
[null,null,null,null,null,null,null,null,null,0,3.94,0]
[null,null,null,null,null,null,null,null,null,0,3.94,0]
[null,null,null,null,null,null,null,null,null,0,3.94,0]
[null,null,null,null,null,null,null,null,null,0,3.94,0]
[null,null,null,null,null,null,null,null,null,0,3.94,0]
[null,null,null,null,null,null,null,null,null,0,3.94,0]
[null,null,null,null,null,null,null,null,null,0,3.94,0]
[null,null,null,null,null,null,null,null,null,0,3.94,0]
[null,null,null,null,null,null,null,null,null,0,3.94,0]
[null,null,null,null,null,null,null,null,null,0,3.94,0]
[null,null,null,null,null,null,null,null,null,0,3.94,0]
[null,null,null,null,null,null,null,null,null,0,3.94,0]
[null,null,null,null,null,null,null,null,null,0,3.94,0]
[null,null,null,null,null,null,null,null,null,0,3.94,0]
[null,null,null,null,null,null,null,null,null,0,3.94,0]
[null,null,null,null,null,null,null,null,null,0,3.94,0]
[null,null,null,null,null,null,null,null,null,0,3.94,0]
[null,null,null,null,null,null,null,null,null,0,3.94,0]
[null,null,null,null,null,null,null,null,null,0,3.94,0]
[null,null,null,null,null,null,null,null,null,0,3.94,0]
[null,null,null,null,null,null,null,null,null,0,3.94,0]
[null,null,null,null,null,null,null,null,null,0,3.94,0]
[null,null,null,null,null,null,null,null,null,0,3.94,0]
[null,null,null,null,null,null,null,null,null,0,3.94,0]
[null,null,null,null,null,null,null,null,null,0,3.94,0]
[null,null,null,null,null,null,null,null,null,0,3.94,0]
[null,null,null,null,null,null,null,null,null,0,3.94,0]
[null,null,null,null,null,null,null,null,null,0,3.94,0]
[null,null,null,null,null,null,null,null,null,0,3.94,0]
[null,null,null,null,null,null,null,null,null,0,3.94,0]
[null,null,null,null,null,null,null,null,null,0,3.94,0]
[null,null,null,null,null,null,null,null,null,{"$f":"SUM(J9:J42)","v":0},null,{"$f":"SUM(L9:L42)","v":0}]
[]
["OBS. Husk også at du må trække parkeringsudgifter fra samtidig med at du bruger kørebog med virkning fra 01.01.17"]
[]
["Overstående er kun en skabelon vi stiller til rådighed. Vi kan ikke garanterer at SKAT godkender skabelonen. Husk at du til en hver tid skal kunne bevise din erhvervsmæssige kørsel. "]
[]
["Krav til kørselsregnskab"]
[]
["Hvis skatteyderen ønsker, at et kørselsregnskab skal danne grundlag ved opgørelsen af fradrag i forbindelse med skatteansættelsen, skal der dagligt være ført en kørebog med angivelse af:"]
[]
["1.","hvad kilometertælleren viste ved begyndelsen af den daglige kørsel og ved dens afslutning"]
["2.","datoen for kørslen"]
["3.","den daglige kørsels fordeling mellem privat og erhvervsmæssig kørsel"]
["4.","bestemmelsessteder for den erhvervsmæssige kørsel og lignende notater, der kan sandsynliggøre og eventuelt dokumentere regnskabets rigtighed."]